fUST/lending_fUST_20250918
["ID","MTS","AMOUNT","RATE_DAILY","PERIOD"]
[385979511,1758172240613,-480.0,0.00023517,3]
[385979513,1758172240622,-481.33795533,0.00023517,3]
[385979515,1758172240631,-480.0,0.00023517,3]
[385979518,1758172240641,-481.102424,0.00023517,3]
[385979519,1758172240657,-481.7808354,0.00023517,3]
[385979522,1758172240666,-480.73747774,0.00023517,3]
[385979524,1758172240676,-480.0,0.00023517,3]
[385979526,1758172240686,-225.16,0.00023517,3]
[385979528,1758172240696,-480.0,0.00023517,3]
[385979530,1758172240705,-500.0,0.00023517,3]
[385979531,1758172240715,-480.0,0.00023517,3]
[385979533,1758172240725,-480.0,0.00023517,3]
[385979535,1758172240734,-480.0,0.00023517,3]
[385979537,1758172240743,-381.61,0.00023517,3]
[385979539,1758172240751,-692.09,0.00023517,3]
[385979541,1758172240760,-480.0,0.00023517,3]
[385979544,1758172240770,-480.0,0.00023517,3]
[385979546,1758172240780,-659.96719,0.00023517,2]
[385979548,1758172240789,-480.0,0.00023517,3]
[385979550,1758172240798,-480.0,0.00023517,3]
[385979552,1758172240808,-605.2,0.00023517,3]
[385979554,1758172240817,-480.0,0.00023517,3]
[385979556,1758172240826,-292.55888499,0.00023517,3]
[385979558,1758172240835,-480.0,0.00023517,3]
[385979560,1758172240845,-245.16206206,0.00023517,3]
[385979562,1758172240855,-480.0,0.00023517,3]
[385979564,1758172240863,-480.0,0.00023517,3]
[385979566,1758172240873,-480.0,0.00023517,3]
[385979568,1758172240882,-480.0,0.00023517,3]
[385979570,1758172240891,-480.0,0.00023517,3]
[385979572,1758172240901,-159.45870702,0.00023517,3]
[385979574,1758172240910,-533.5883758,0.00023517,3]
[385979575,1758172240920,-482.80793061,0.00023517,3]
[385979578,1758172240930,-480.0,0.00023517,3]
[385979580,1758172240939,-480.0,0.00023517,3]
[385979581,1758172240948,-480.0,0.00023517,3]
[385979583,1758172240957,-514.03076951,0.00023517,3]
[385979585,1758172240966,-480.0,0.00023517,3]
[385979587,1758172240975,-480.0,0.00023517,3]
[385979589,1758172240985,-480.0,0.00023517,3]
[385979591,1758172240994,-1595.12,0.00023517,2]
[385979593,1758172241003,-504.00444277,0.00023517,3]
[385979595,1758172241012,-480.0,0.00023517,3]
[385979597,1758172241021,-480.0,0.00023517,3]
[385979599,1758172241031,-501.05897639,0.00023517,3]
[385979601,1758172241040,-480.0,0.00023517,3]
[385979603,1758172241049,-480.0,0.00023517,3]
[385979605,1758172241059,-480.0,0.00023517,3]
[385979607,1758172241068,-34456.36541718,0.00023518,2]
[385984012,1758172286108,10000.0,0.00022574,2]
[385985070,1758172297164,307.0,0.00022329,7]
[385985546,1758172303207,201.47222551,0.000218,2]
[385985552,1758172480109,201.47222551,0.000218,2]
[385985553,1758172609682,203.0,0.00020685,3]
[385985555,1758172660264,201.47222551,0.000218,2]
[385985556,1758172686671,300.141785,0.00022506,2]
[385985557,1758172739164,633.9962346,0.00022506,2]
[385985558,1758172740723,5413.0432621,0.00022506,2]
[385985559,1758172841551,201.47222551,0.000218,2]
[385985560,1758172999079,253.81093945,0.00022797,2]
[385985561,1758173013575,184.6051033,0.00022686,2]
[385985562,1758173022876,201.47222551,0.000218,2]
[385985578,1758173188142,-203.84790655,0.00023416,2]
[385985579,1758173191186,-154.12364974,0.00023402,2]
[385985580,1758173193213,-226.13372933,0.00023402,2]
[385985581,1758173195887,-132.57309608,0.00023402,2]
[385985582,1758173195910,-98.91715971,0.00023416,2]
[385985583,1758173198947,-203.87801185,0.00023416,2]
[385985584,1758173198970,-29.61265718,0.00023488,2]
[385985585,1758173201601,-270.38734282,0.00023488,2]
[385985586,1758173201625,-10.21535037,0.00023489,2]
[385985588,1758173207226,-394.83198363,0.00023489,2]
[385985589,1758173210563,192.6430603,0.000218,2]
[385985590,1758173210590,8.82916521,0.000218,2]
[385985592,1758173224595,8156.4218569,0.00022501,2]
[385985599,1758173312121,183.214183,0.00022502,2]
[385985616,1758173396959,201.47222551,0.000218,2]
[385985619,1758173428079,-171.18194806,0.00023388,2]
[385985620,1758173428103,-71.2757874,0.00023415,2]
[385985621,1758173430793,-176.63790465,0.00023415,2]
[385985652,1758173432190,-205.75112511,0.00023415,2]
[385985653,1758173432199,-1200.0,0.00023488,2]
[385985655,1758173432208,-300.0,0.00023488,2]
[385985657,1758173432218,-300.0,0.00023488,2]
[385985659,1758173432227,-1200.0,0.00023499,2]
[385985661,1758173432237,-270.37589861,0.000235,2]
[385985662,1758173432247,-480.0,0.000235,3]
[385985664,1758173432256,-480.0,0.000235,3]
[385985665,1758173432265,-40709.66191105,0.000235,2]
[385985666,1758173433061,-278.21473182,0.000235,2]
[385985667,1758173436288,-225.04068905,0.000235,2]
[385985688,1758173438003,-1819.60298465,0.000235,2]
[385985700,1758173438117,-6967.47968343,0.000235,2]
[385985702,1758173438126,-480.0,0.000235,3]
[385985704,1758173438135,-514.16,0.000235,3]
[385985706,1758173438144,-480.0,0.000235,3]
[385985708,1758173438153,-480.0,0.000235,3]
[385985710,1758173438162,-214.92915007,0.000235,3]
[385985712,1758173438171,-480.0,0.00023501,3]
[385985713,1758173438180,-480.0,0.00023501,3]
[385985715,1758173438189,-360.84,0.00023501,3]
[385985717,1758173438198,-480.0,0.00023501,3]
[385985719,1758173438207,-306.24,0.00023501,3]
[385985721,1758173438216,-480.0,0.00023501,3]
[385985723,1758173438225,-480.0,0.00023501,3]
[385985725,1758173438234,-480.0,0.00023501,3]
[385985727,1758173438243,-480.0,0.00023501,3]
[385985728,1758173438252,-480.0,0.00023502,3]
[385985730,1758173438261,-480.0,0.00023502,3]
[385985732,1758173438271,-289.53403323,0.00023502,3]
[385985734,1758173438280,-470.23299335,0.00023502,3]
[385985736,1758173438289,-480.0,0.00023502,3]
[385985738,1758173438298,-480.0,0.00023502,3]
[385985740,1758173438307,-192.05565565,0.00023502,3]
[385985742,1758173438317,-436.94459789,0.00023502,3]
[385985744,1758173438326,-579.98,0.00023502,3]
[385985746,1758173438334,-480.0,0.00023502,3]
[385985747,1758173438343,-500.0,0.00023502,2]
[385985749,1758173438352,-500.0,0.00023502,2]
[385985751,1758173438362,-248.72787964,0.00023502,2]
[385985753,1758173438376,-480.0,0.00023502,3]
[385985755,1758173438385,-480.0,0.00023502,3]
[385985757,1758173438395,-480.0,0.00023502,3]
[385985759,1758173438403,-480.0,0.00023502,3]
[385985761,1758173438414,-480.0,0.00023502,3]
[385985763,1758173438423,-493.02835821,0.00023502,3]
[385985765,1758173438432,-493.26053584,0.00023502,3]
[385985767,1758173438442,-482.57988311,0.00023502,3]
[385985770,1758173438462,-368.41097937,0.00023502,3]
[385985771,1758173438471,-480.0,0.00023502,3]
[385985773,1758173438480,-480.0,0.00023503,3]
[385985775,1758173438490,-480.0,0.00023503,3]
[385985777,1758173438499,-480.0,0.00023503,3]
[385985779,1758173438508,-480.0,0.00023503,3]
[385985781,1758173438518,-480.0,0.00023503,3]
[385985783,1758173438528,-500.0,0.00023504,2]
[385985785,1758173438537,-500.0,0.00023504,2]
[385985787,1758173438546,-500.0,0.00023504,2]
[385985789,1758173438556,-500.0,0.00023504,2]
[385985791,1758173438565,-594.952666,0.00023504,2]
[385985793,1758173438574,-151.0,0.00023504,2]
[385985794,1758173438583,-151.0,0.00023504,2]
[385985796,1758173438593,-151.0,0.00023504,2]
[385985798,1758173438602,-153.13209788,0.00023504,2]
[385985800,1758173438611,-663.25,0.00023514,3]
[385985803,1758173438629,-480.0,0.00023514,3]
[385985805,1758173438643,-480.0,0.00023514,3]
[385985808,1758173438656,-481.87420238,0.00023515,3]
[385985810,1758173438670,-290.94439098,0.00023515,3]
[385985812,1758173438682,-480.0,0.00023515,3]
[385985814,1758173438694,-239.27212997,0.00023515,3]
[385985816,1758173438706,-480.0,0.00023515,3]
[385985818,1758173438717,-480.0,0.00023515,3]
[385985820,1758173438727,-485.13310683,0.00023515,3]
[385985823,1758173438739,-480.0,0.00023515,3]
[385985825,1758173438751,-480.0,0.00023515,3]
[385985827,1758173438763,-606.98470715,0.00023515,3]
[385985829,1758173438773,-480.0,0.00023515,3]
[385985831,1758173438784,-481.98591151,0.00023515,3]
[385985833,1758173438799,-1674.26,0.00023515,3]
[385985836,1758173438811,-152.02326593,0.00023515,3]
[385985838,1758173438822,-151.955792,0.00023515,3]
[385985840,1758173438834,-151.0,0.00023515,3]
[385985842,1758173438845,-151.43692654,0.00023515,3]
[385985844,1758173438856,-151.0,0.00023515,3]
[385985846,1758173438868,-152.03070636,0.00023515,3]
[385985848,1758173438879,-151.30214876,0.00023515,2]
[385985850,1758173438891,-151.514602,0.00023515,3]
[385985853,1758173438902,-480.0,0.00023515,3]
[385985855,1758173438914,-297.31285071,0.00023515,3]
[385985857,1758173438925,-480.0,0.00023515,3]
[385985859,1758173438936,-480.0,0.00023515,3]
[385985861,1758173438946,-151.0,0.00023515,3]
[385985863,1758173438957,-151.2769351,0.00023515,3]
[385985865,1758173438971,-151.0,0.00023515,3]
[385985868,1758173438983,-151.0,0.00023515,3]
[385985870,1758173438994,-151.52473437,0.00023515,3]
[385985872,1758173439005,-151.0,0.00023515,3]
[385985874,1758173439016,-151.13221225,0.00023515,3]
[385985876,1758173439027,-230.17208461,0.00023515,3]
[385985878,1758173439039,-276.09904399,0.00023515,3]
[385985880,1758173439050,-151.29211184,0.00023515,3]
[385985882,1758173439061,-151.30050291,0.00023515,3]
[385985884,1758173439071,-151.41636184,0.00023515,3]
[385985887,1758173439082,-151.0,0.00023515,3]
[385985888,1758173439092,-151.0,0.00023515,2]
[385985890,1758173439102,-157.75316819,0.00023515,3]
[385985892,1758173439112,-157.82054604,0.00023515,2]
[385985894,1758173439122,-151.0,0.00023515,3]
[385985896,1758173439132,-151.0,0.00023515,3]
[385985898,1758173439143,-151.0,0.00023515,3]
[385985900,1758173439154,-475.72909822,0.00023515,3]
[385985903,1758173439164,-480.0,0.00023515,3]
[385985905,1758173439175,-4297.9,0.00023515,3]
[385985907,1758173439187,-480.0,0.00023515,3]
[385985909,1758173439198,-480.0,0.00023515,3]
[385985911,1758173439209,-480.0,0.00023515,3]
[385985913,1758173439220,-151.0,0.00023517,3]
[385985915,1758173439231,-202.82577652,0.00023517,3]
[385985917,1758173439243,-151.4272161,0.00023517,3]
[385985919,1758173439254,-1528.66,0.00023517,2]
[385985921,1758173439266,-24670.5266961,0.00023518,2]
[385985923,1758173439278,-201.92473136,0.00023561,3]
[385985926,1758173439289,-500.0,0.00023573,2]
[385985928,1758173439303,-501.21536066,0.00023573,2]
[385985930,1758173439317,-500.0,0.00023573,2]
[385985932,1758173439328,-508.12528172,0.00023573,2]
[385985934,1758173439339,-303.66946565,0.00023573,2]
[385985936,1758173439349,-504.38097248,0.00023573,2]
[385985938,1758173439360,-501.92314477,0.00023573,2]
[385985940,1758173439373,-500.0,0.00023573,2]
[385985942,1758173439383,-505.03690112,0.00023573,2]
[385985944,1758173439393,-631.57035006,0.00023573,2]
[385985946,1758173439404,-500.65849376,0.00023573,2]
[385985948,1758173439414,-500.0,0.00023573,2]
[385985950,1758173439426,-500.0,0.00023573,2]
[385985952,1758173439436,-224.66243499,0.00023573,2]
[385985954,1758173439447,-500.0,0.00023573,2]
[385985956,1758173439459,-502.62804999,0.00023573,2]
[385985958,1758173439468,-547.07638326,0.00023573,2]
[385985960,1758173439481,-500.0,0.00023573,2]
[385985963,1758173439492,-500.0,0.00023573,2]
[385985966,1758173439502,-500.0,0.00023573,2]
[385985969,1758173439517,-503.96686005,0.00023573,2]
[385985971,1758173439529,-579.54022766,0.00023573,2]
[385985973,1758173439540,-500.0,0.00023573,2]
[385985974,1758173439550,-336.77033214,0.00023573,2]
[385985976,1758173439560,-500.0,0.00023573,2]
[385985978,1758173439570,-500.0,0.00023573,2]
[385985980,1758173439580,-500.0,0.00023573,2]
[385985982,1758173439592,-500.0,0.00023573,2]
[385985983,1758173439602,-500.0,0.00023573,2]
[385985984,1758173439613,-500.0,0.00023573,2]
[385985985,1758173439628,-500.0,0.00023573,2]
[385985986,1758173439639,-500.0,0.00023573,2]
[385985987,1758173439650,-679.95933048,0.00023615,2]
[385985988,1758173439661,-3353.8595958,0.00023615,2]
[385985989,1758173439671,-226.63384978,0.00023637,2]
[385985990,1758173439683,-290.8109772,0.000237,2]
[385985992,1758173439693,-201.47222551,0.00023707,2]
[385985994,1758173439705,-170.42,0.00023738,2]
[385985995,1758173439719,-170.42,0.00023738,2]
[385985996,1758173439732,-152.38,0.00023738,2]
[385985997,1758173439744,-453.66481716,0.00023766,2]
[385985999,1758173439755,-381.87,0.00023767,3]
[385986001,1758173439766,-190.94,0.00023767,3]
[385986002,1758173439777,-572.82,0.00023767,3]
[385986003,1758173439788,-194.52554037,0.00023774,3]
[385986004,1758173439799,-480.0,0.00023774,3]
[385986005,1758173439810,-480.0,0.00023774,3]
[385986006,1758173439821,-480.0,0.00023774,3]
[385986007,1758173439831,-500.63191286,0.00023775,3]
[385986008,1758173439844,-534.58,0.00023775,3]
[385986009,1758173439854,-480.0,0.00023775,3]
[385986010,1758173439864,-541.70517232,0.00023775,3]
[385986011,1758173439876,-480.0,0.00023775,3]
[385986012,1758173439887,-480.0,0.00023775,3]
[385986013,1758173439897,-480.0,0.00023775,3]
[385986014,1758173439908,-480.0,0.00023776,3]
[385986015,1758173439918,-480.0,0.00023776,3]
[385986017,1758173439928,-393.22,0.00023776,3]
[385986018,1758173439939,-480.0,0.00023776,3]
[385986033,1758173440069,-579.98,0.00023776,3]
[385986035,1758173440078,-174.16,0.00023776,3]
[385986037,1758173440087,-150.26,0.00023776,3]
[385986039,1758173440096,-492.67,0.00023776,3]
[385986041,1758173440106,-370.6416838,0.00023776,3]
[385986042,1758173440115,-480.0,0.00023776,3]
[385986044,1758173440124,-480.0,0.00023777,3]
[385986046,1758173440134,-480.0,0.00023777,3]
[385986049,1758173440143,-336.48753246,0.00023777,3]
[385986050,1758173440153,-480.0,0.00023777,3]
[385986052,1758173440162,-352.07632212,0.00023787,2]
[385986054,1758173440171,-203.54496452,0.00023787,2]
[385986056,1758173440181,-663.25,0.00023788,3]
[385986058,1758173440191,-480.0,0.00023788,3]
[385986060,1758173440200,-521.63,0.00023788,3]
[385986062,1758173440210,-153.63406817,0.00023789,3]
[385986064,1758173440219,-198.0,0.00023789,3]
[385986066,1758173440229,-151.0,0.00023789,3]
[385986068,1758173440238,-152.72528015,0.00023789,3]
[385986070,1758173440247,-152.44797214,0.00023789,3]
[385986072,1758173440257,-153.04618021,0.00023789,3]
[385986074,1758173440267,-151.0,0.00023789,3]
[385986076,1758173440278,-151.0,0.00023789,3]
[385986078,1758173440287,-151.0,0.00023789,3]
[385986080,1758173440296,-151.0,0.00023789,3]
[385986082,1758173440306,-318.09433907,0.00023789,3]
[385986084,1758173440315,-480.0,0.00023789,3]
[385986086,1758173440324,-472.80084475,0.00023789,3]
[385986088,1758173440334,-183.35644826,0.00023789,3]
[385986090,1758173440343,-480.0,0.00023789,3]
[385986093,1758173440355,-1674.26,0.00023789,3]
[385986095,1758173440364,-480.0,0.00023789,3]
[385986097,1758173440377,-480.0,0.00023789,3]
[385986099,1758173440386,-480.0,0.00023789,3]
[385986101,1758173440395,-480.0,0.00023789,3]
[385986102,1758173440404,-4297.9,0.00023789,3]
[385986105,1758173440414,-480.0,0.00023789,3]
[385986107,1758173440423,-480.0,0.00023789,3]
[385986109,1758173440433,-480.0,0.00023789,3]
[385986111,1758173440443,-161.9493691,0.000238,2]
[385986113,1758173440452,-161.9493691,0.000238,2]
[385986115,1758173440461,-323.7413757,0.000238,2]
[385986117,1758173440470,-161.8674926,0.000238,2]
[385986119,1758173440479,-675.95106529,0.00023906,2]
[385986121,1758173440488,-480.0,0.00024048,3]
[385986123,1758173440497,-480.0,0.00024048,3]
[385986125,1758173440507,-480.0,0.00024048,3]
[385986127,1758173440516,-480.0,0.00024049,3]
[385986129,1758173440525,-480.0,0.00024049,3]
[385986131,1758173440534,-480.0,0.00024049,3]
[385986133,1758173440543,-480.0,0.0002405,3]
[385986135,1758173440553,-480.0,0.0002405,3]
[385986137,1758173440562,-480.0,0.0002405,3]
[385986139,1758173440575,-579.98,0.0002405,3]
[385986141,1758173440585,-480.0,0.0002405,3]
[385986143,1758173440595,-566.5292897,0.00024051,3]
[385986145,1758173440604,-480.0,0.00024051,3]
[385986147,1758173440614,-663.25,0.00024062,3]
[385986149,1758173440624,-480.0,0.00024062,3]
[385986151,1758173440633,-151.0,0.00024063,3]
[385986153,1758173440643,-198.85911862,0.00024063,3]
[385986155,1758173440653,-151.0,0.00024063,3]
[385986157,1758173440663,-201.2420852,0.00024063,3]
[385986159,1758173440673,-166.39851076,0.00024063,3]
[385986161,1758173440682,-480.0,0.00024063,3]
[385986163,1758173440692,-480.0,0.00024063,3]
[385986165,1758173440701,-1674.26,0.00024063,3]
[385986167,1758173440711,-480.0,0.00024063,3]
[385986169,1758173440720,-480.0,0.00024063,3]
[385986171,1758173440729,-480.0,0.00024063,3]
[385986173,1758173440738,-4297.9,0.00024063,3]
[385986175,1758173440748,-570.83,0.00024063,3]
[385986177,1758173440757,-480.0,0.00024063,3]
[385986179,1758173440767,-480.0,0.00024063,3]
[385986181,1758173440776,-453.66481716,0.00024118,2]
[385986183,1758173440786,-1001.85680148,0.00024121,2]
[385986185,1758173440795,-1000.0,0.00024121,2]
[385986187,1758173440805,-1015.12854355,0.00024121,2]
[385986189,1758173440815,-1000.0,0.00024121,2]
[385986191,1758173440824,-500.0,0.00024121,2]
[385986193,1758173440834,-1000.0,0.00024121,2]
[385986195,1758173440843,-1000.0,0.00024121,2]
[385986197,1758173440854,-500.21332873,0.00024121,2]
[385986199,1758173440863,-500.0,0.00024121,2]
[385986201,1758173440872,-195.2719788,0.00024121,2]
[385986203,1758173440883,-1000.0,0.00024121,2]
[385986205,1758173440892,-1000.0,0.00024121,2]
[385986207,1758173440901,-1000.0,0.00024121,2]
[385986209,1758173440911,-1000.0,0.00024121,2]
[385986211,1758173440920,-213.05,0.00024322,3]
[385986213,1758173440930,-480.0,0.00024322,3]
[385986215,1758173440939,-480.0,0.00024322,3]
[385986217,1758173440948,-480.0,0.00024323,3]
[385986219,1758173440959,-480.0,0.00024323,3]
[385986221,1758173440968,-480.0,0.00024323,3]
[385986223,1758173440977,-169.97421952,0.00024324,3]
[385986225,1758173440986,-480.0,0.00024324,3]
[385986227,1758173440996,-480.0,0.00024324,3]
[385986229,1758173441005,-579.98,0.00024324,3]
[385986231,1758173441014,-480.0,0.00024324,3]
[385986233,1758173441023,-663.25,0.00024336,3]
[385986235,1758173441032,-480.0,0.00024336,3]
[385986237,1758173441042,-151.0,0.00024337,3]
[385986239,1758173441051,-199.63281683,0.00024337,3]
[385986241,1758173441060,-365.48,0.00024337,3]
[385986243,1758173441069,-480.0,0.00024337,3]
[385986245,1758173441078,-1674.26,0.00024337,3]
[385986247,1758173441088,-476.70059783,0.00024337,3]
[385986249,1758173441097,-480.0,0.00024337,3]
[385986251,1758173441106,-480.0,0.00024337,3]
[385986253,1758173441116,-4297.9,0.00024337,3]
[385986255,1758173441126,-238.81,0.00024337,3]
[385986257,1758173441135,-480.0,0.00024337,3]
[385986259,1758173441144,-154.802696,0.00024406,3]
[385986261,1758173441154,-453.66481716,0.00024469,2]
[385986263,1758173441163,-324.66,0.000245,14]
[385986265,1758173441172,-158.0,0.00024596,3]
[385986267,1758173441182,-251.56320754,0.00024596,3]
[385986269,1758173441191,-526.26766846,0.00024597,3]
[385986271,1758173441200,-579.41056363,0.00024597,3]
[385986273,1758173441209,-480.0,0.00024597,3]
[385986275,1758173441218,-150.0,0.00024598,2]
[385986277,1758173441227,-480.0,0.00024598,3]
[385986279,1758173441237,-321.50602336,0.00024598,3]
[385986281,1758173441246,-579.98,0.00024598,3]
[385986283,1758173441255,-480.0,0.00024598,3]
[385986285,1758173441264,-301.97941425,0.000246,2]
[385986287,1758173441273,-663.25,0.0002461,3]
[385986289,1758173441282,-541.9873854,0.0002461,3]
[385986291,1758173441292,-151.0,0.00024611,3]
[385986293,1758173441300,-480.0,0.00024611,3]
[385986295,1758173441309,-1674.26,0.00024611,3]
[385986297,1758173441318,-480.0,0.00024611,3]
[385986299,1758173441327,-4297.9,0.00024611,3]
[385986301,1758173441336,-480.0,0.00024611,3]
[385986303,1758173441346,-151.0,0.00024658,2]
[385986305,1758173441355,-1500.0,0.00024668,2]
[385986307,1758173441364,-500.0,0.00024668,2]
[385986309,1758173441376,-1500.0,0.00024668,2]
[385986311,1758173441385,-1387.09696802,0.00024668,2]
[385986313,1758173441394,-500.0,0.00024668,2]
[385986315,1758173441403,-981.328,0.00024673,2]
[385986317,1758173441412,-2166.924,0.00024673,2]
[385986319,1758173441421,-636.852,0.00024673,2]
[385986321,1758173441430,-410.0,0.00024673,2]
[385986323,1758173441440,-900.0,0.00024712,2]
[385986325,1758173441449,-3572.91037764,0.000248,2]
[385986327,1758173441458,-453.66481716,0.0002482,2]
[385986329,1758173441467,-168.0,0.00024833,2]
[385986331,1758173441476,-172.687,0.00024863,8]
[385986332,1758173441485,-480.0,0.00024871,3]
[385986334,1758173441495,-457.96,0.00024872,3]
[385986336,1758173441504,-579.98,0.00024872,3]
[385986338,1758173441513,-480.0,0.00024872,3]
[385986340,1758173441523,-503.96400476,0.00024873,2]
[385986342,1758173441532,-501.2164168,0.00024873,2]
[385986344,1758173441541,-501.30515149,0.00024873,2]
[385986347,1758173441551,-509.09059891,0.00024873,2]
[385986349,1758173441561,-504.1962342,0.00024873,2]
[385986351,1758173441570,-160.67374199,0.00024873,2]
[385986353,1758173441579,-503.49402217,0.00024873,2]
[385986355,1758173441589,-500.0,0.00024873,2]
[385986357,1758173441598,-500.0,0.00024873,2]
[385986359,1758173441607,-500.0,0.00024873,2]
[385986361,1758173441617,-501.07766424,0.00024873,2]
[385986363,1758173441626,-160.89732276,0.00024873,2]
[385986364,1758173441636,-501.95474255,0.00024873,2]
[385986366,1758173441645,-500.27621588,0.00024873,2]
[385986368,1758173441655,-501.46379598,0.00024873,2]
[385986371,1758173441664,-500.0,0.00024873,2]
[385986373,1758173441673,-500.0,0.00024873,2]
[385986375,1758173441683,-503.93477338,0.00024873,2]
[385986377,1758173441692,-500.0,0.00024873,2]
[385986379,1758173441702,-663.25,0.00024884,3]
[385986381,1758173441712,-245.0,0.00024885,3]
[385986382,1758173441721,-480.0,0.00024885,3]
[385986385,1758173441731,-1674.26,0.00024885,3]
[385986387,1758173441740,-480.0,0.00024885,3]
[385986389,1758173441749,-4297.9,0.00024885,3]
[385986390,1758173441759,-480.0,0.00024885,3]
[385986393,1758173441769,-426860.27769386,0.000249,2]
[385986409,1758173441918,-7027.98225,0.000249,2]
[385986427,1758173442082,-0.01165224,0.000249,2]
[385988269,1758173460696,-153.29765196,0.00023502,3]
[385990035,1758173583337,201.47222551,0.000218,2]
[385990036,1758173765712,201.47222551,0.0002175,2]
[385990037,1758173783172,160.0,0.00027767,120]
[385990038,1758173798615,160.0,0.00027767,120]
[385990039,1758173810517,160.0,0.00027767,120]
[385990040,1758173827537,160.0,0.00027767,120]
[385990041,1758173845427,170.0,0.00027767,120]
[385990042,1758173862820,173.0,0.00027767,120]
[385990043,1758173947334,201.47222551,0.0002175,2]
[385990055,1758174102344,1505.3372699,0.00022773,2]
[385990056,1758174132492,201.47222551,0.0002175,2]
[385990057,1758174200305,265.90955595,0.00022795,2]
[385990058,1758174312386,201.47222551,0.0002175,2]
[385990059,1758174321790,666.0,0.0002261,2]
[385990060,1758174375121,6360.7742156,0.0002261,2]
[385990062,1758174459710,181.667194,0.0002261,2]
[385990063,1758174491554,201.47222551,0.0002175,2]
[385990305,1758174638259,-1200.0,0.00023497,2]
[385990307,1758174638269,-300.0,0.00023498,2]
[385990309,1758174638278,-300.0,0.00023498,2]
[385990311,1758174638287,-300.0,0.00023498,2]
[385990313,1758174638296,-483.37328174,0.00023499,3]
[385990314,1758174638306,-1119.0,0.00023499,2]
[385990316,1758174638315,-552.71,0.00023499,3]
[385990318,1758174638324,-480.0,0.00023499,3]
[385990320,1758174638333,-251.56320754,0.00023499,3]
[385990321,1758174638342,-541.9873854,0.00023499,3]
[385990323,1758174638351,-480.0,0.000235,3]
[385990325,1758174638361,-480.0,0.000235,3]
[385990327,1758174638370,-321.50602336,0.000235,3]
[385990329,1758174638378,-578.67,0.000235,3]
[385990330,1758174638387,-480.0,0.000235,3]
[385990332,1758174638396,-12045.21536665,0.000235,2]
[385990334,1758174638405,-526.26766846,0.000235,3]
[385990336,1758174638415,-480.0,0.000235,3]
[385990338,1758174638425,-617.56203235,0.000235,3]
[385990340,1758174638434,-579.41056363,0.000235,3]
[385990341,1758174638443,-480.0,0.000235,3]
[385990343,1758174638452,-3601.58,0.000235,3]
[385990345,1758174638461,-480.0,0.000235,3]
[385990347,1758174638471,-485.44968466,0.000235,3]
[385990349,1758174638480,-480.0,0.000235,3]
[385990350,1758174638489,-483.32,0.000235,3]
[385990352,1758174638500,-448.72666573,0.00023674,2]
[385990354,1758174638509,-552.71,0.00023773,3]
[385990356,1758174638518,-158.0,0.00023773,3]
[385990358,1758174638527,-480.0,0.00023774,3]
[385990360,1758174638537,-457.96,0.00023774,3]
[385990361,1758174638546,-578.67,0.00023774,3]
[385990363,1758174638555,-480.0,0.00023774,3]
[385990365,1758174638564,-480.0,0.00023774,3]
[385990367,1758174638573,-3601.58,0.00023774,3]
[385990369,1758174638582,-480.0,0.00023774,3]
[385990371,1758174638591,-480.0,0.00023774,3]